[Event "Titled Tuesday Blitz July 20 2021"]
[White "Dixit, Arun"]
[Black "Skatchkov, Valery"]
[WhiteFideId "30937671"]
[BlackFideId "24195812"]
[WhiteElo "2375"]
[BlackElo "2199"]
[Result "0-1"]
[Round "06"]
[TimeControl "180+1"]
[Date "2021.07.21"]
[WhiteClock "0:00:09"]
[BlackClock "0:00:59"]

1. d4 {[%clk 0:03:00]}  Nf6 {[%clk 0:02:59]} 2. c4 {[%clk 0:02:59]}  e6 {[%clk 0:03:00]} 3. Nc3 {[%clk 0:02:58]}  c5 {[%clk 0:02:58]} 4. d5 {[%clk 0:02:54]}  exd5 {[%clk 0:02:58]} 5. cxd5 {[%clk 0:02:55]}  d6 {[%clk 0:02:57]} 6. e4 {[%clk 0:02:55]}  g6 {[%clk 0:02:57]} 7. Nf3 {[%clk 0:02:52]}  Bg7 {[%clk 0:02:58]} 8. Nd2 {[%clk 0:02:51]}  O-O {[%clk 0:02:58]} 9. a4 {[%clk 0:02:50]}  Na6 {[%clk 0:02:55]} 10. Bd3 {[%clk 0:02:47]}  Nb4 {[%clk 0:02:56]} 11. Bb1 {[%clk 0:02:47]}  Re8 {[%clk 0:02:47]} 12. O-O {[%clk 0:02:46]}  Ng4 {[%clk 0:02:44]} 13. Nc4 {[%clk 0:02:42]}  a6 {[%clk 0:02:35]} 14. Bf4 {[%clk 0:02:37]}  Ne5 {[%clk 0:02:31]} 15. Nxe5 {[%clk 0:02:33]}  Bxe5 {[%clk 0:02:32]} 16. Bxe5 {[%clk 0:02:33]}  dxe5 {[%clk 0:02:33]} 17. Na2 {[%clk 0:02:30]}  Nxa2 {[%clk 0:02:29]} 18. Bxa2 {[%clk 0:02:31]}  Qd6 {[%clk 0:02:30]} 19. Bc4 {[%clk 0:02:30]}  b6 {[%clk 0:02:29]} 20. Qe2 {[%clk 0:02:27]}  f5 {[%clk 0:02:24]} 21. Rae1 {[%clk 0:02:13]}  f4 {[%clk 0:02:24]} 22. f3 {[%clk 0:02:07]}  Bd7 {[%clk 0:02:02]} 23. b3 {[%clk 0:01:48]}  a5 {[%clk 0:01:39]} 24. Bb5 {[%clk 0:01:37]}  Re7 {[%clk 0:01:32]} 25. Bxd7 {[%clk 0:01:18]}  Rxd7 {[%clk 0:01:33]} 26. Qb5 {[%clk 0:01:16]}  Qc7 {[%clk 0:01:29]} 27. Rc1 {[%clk 0:01:14]}  Rd6 {[%clk 0:01:28]} 28. Qd3 {[%clk 0:01:11]}  g5 {[%clk 0:01:27]} 29. g4 {[%clk 0:01:06]}  fxg3 {[%clk 0:01:25]} 30. hxg3 {[%clk 0:01:07]}  Rf8 {[%clk 0:01:26]} 31. Kg2 {[%clk 0:01:05]}  Qg7 {[%clk 0:01:21]} 32. g4 {[%clk 0:01:05]}  h5 {[%clk 0:01:19]} 33. gxh5 {[%clk 0:01:00]}  g4 {[%clk 0:01:19]} 34. Kh1 {[%clk 0:01:00]}  Rh6 {[%clk 0:01:07]} 35. fxg4 {[%clk 0:00:58]}  Qxg4 {[%clk 0:01:08]} 36. Rxf8+ {[%clk 0:00:48]}  Kxf8 {[%clk 0:01:09]} 37. Rc2 {[%clk 0:00:22]}  Qxh5+ {[%clk 0:01:07]} 38. Kg2 {[%clk 0:00:18]}  Qh1+ {[%clk 0:01:06]} 39. Kf2 {[%clk 0:00:16]}  Rh2+ {[%clk 0:01:06]} 40. Ke3 {[%clk 0:00:14]}  Qe1+ {[%clk 0:01:05]} 41. Kf3 {[%clk 0:00:11]}  Rh3+ {[%clk 0:01:04]} 42. Kg4 {[%clk 0:00:12]}  Qh4+ {[%clk 0:01:04]} 43. Kf5 {[%clk 0:00:11]}  Qf4+ {[%clk 0:01:05]} 44. Ke6 {[%clk 0:00:11]}  Rh6+ {[%clk 0:01:06]} 45. Kd7 {[%clk 0:00:11]}  Qf7+ {[%clk 0:00:59]} 46. Kc8 {[%clk 0:00:09]}  Rh8 {[%clk 0:00:59]} 0-1


[Site "https://www.chess.com"]

[Event "Titled Tuesday Blitz July 20 2021"]
[White "Eynullayev, Atilla"]
[Black "Manzone, Alessandro"]
[WhiteFideId "13413570"]
[BlackFideId "112488"]
[WhiteElo "1997"]
[BlackElo "2327"]
[Result "1-0"]
[Round "06"]
[TimeControl "180+1"]
[Date "2021.07.21"]
[WhiteClock "0:00:11"]
[BlackClock "0:00:03"]

1. d4 {[%clk 0:03:00]}  Nf6 {[%clk 0:02:59]} 2. c4 {[%clk 0:03:00]}  e6 {[%clk 0:03:00]} 3. Nc3 {[%clk 0:03:00]}  Bb4 {[%clk 0:03:00]} 4. e3 {[%clk 0:03:00]}  O-O {[%clk 0:03:00]} 5. Nf3 {[%clk 0:03:00]}  d5 {[%clk 0:02:57]} 6. a3 {[%clk 0:03:00]}  Bxc3+ {[%clk 0:02:56]} 7. bxc3 {[%clk 0:03:00]}  c5 {[%clk 0:02:57]} 8. Bb2 {[%clk 0:02:59]}  b6 {[%clk 0:02:56]} 9. cxd5 {[%clk 0:02:55]}  exd5 {[%clk 0:02:50]} 10. c4 {[%clk 0:02:54]}  Ba6 {[%clk 0:02:09]} 11. dxc5 {[%clk 0:02:20]}  bxc5 {[%clk 0:01:52]} 12. Bxf6 {[%clk 0:02:08]}  Qxf6 {[%clk 0:01:51]} 13. cxd5 {[%clk 0:02:08]}  Bxf1 {[%clk 0:01:35]} 14. Kxf1 {[%clk 0:02:07]}  Rd8 {[%clk 0:01:33]} 15. e4 {[%clk 0:01:56]}  Nc6 {[%clk 0:01:17]} 16. g3 {[%clk 0:01:53]}  Na5 {[%clk 0:01:09]} 17. Kg2 {[%clk 0:01:51]}  Rab8 {[%clk 0:01:06]} 18. Rb1 {[%clk 0:01:28]}  c4 {[%clk 0:01:04]} 19. Qa4 {[%clk 0:01:22]}  Nb3 {[%clk 0:00:53]} 20. Rhd1 {[%clk 0:01:12]}  Rdc8 {[%clk 0:00:21]} 21. d6 {[%clk 0:01:06]}  Qe6 {[%clk 0:00:21]} 22. d7 {[%clk 0:01:05]}  Rd8 {[%clk 0:00:21]} 23. Ng5 {[%clk 0:00:54]}  Qe5 {[%clk 0:00:18]} 24. Qxc4 {[%clk 0:00:52]}  Qxg5 {[%clk 0:00:10]} 25. Rxb3 {[%clk 0:00:52]}  Rxb3 {[%clk 0:00:11]} 26. Qxb3 {[%clk 0:00:52]}  Qe7 {[%clk 0:00:12]} 27. Qb7 {[%clk 0:00:51]}  h5 {[%clk 0:00:11]} 28. Qd5 {[%clk 0:00:45]}  h4 {[%clk 0:00:10]} 29. gxh4 {[%clk 0:00:45]}  Qxh4 {[%clk 0:00:09]} 30. Rd3 {[%clk 0:00:46]}  Qe7 {[%clk 0:00:08]} 31. a4 {[%clk 0:00:42]}  Qf6 {[%clk 0:00:07]} 32. a5 {[%clk 0:00:41]}  a6 {[%clk 0:00:07]} 33. e5 {[%clk 0:00:40]}  Qf5 {[%clk 0:00:06]} 34. Qd4 {[%clk 0:00:24]}  g6 {[%clk 0:00:06]} 35. h4 {[%clk 0:00:22]}  Qe6 {[%clk 0:00:06]} 36. Kg3 {[%clk 0:00:20]}  Qf5 {[%clk 0:00:06]} 37. Qd5 {[%clk 0:00:19]}  Kg7 {[%clk 0:00:05]} 38. Qd4 {[%clk 0:00:19]}  Qe6 {[%clk 0:00:05]} 39. Rd2 {[%clk 0:00:17]}  Qf5 {[%clk 0:00:05]} 40. f4 {[%clk 0:00:17]}  Kg8 {[%clk 0:00:05]} 41. Qd3 {[%clk 0:00:17]}  Qe6 {[%clk 0:00:05]} 42. f5 {[%clk 0:00:16]}  gxf5 {[%clk 0:00:05]} 43. Qd6 {[%clk 0:00:15]}  Qb3+ {[%clk 0:00:04]} 44. Rd3 {[%clk 0:00:16]}  Qc2 {[%clk 0:00:04]} 45. Kh3 {[%clk 0:00:14]}  Qf2 {[%clk 0:00:04]} 46. Rg3+ {[%clk 0:00:14]}  Kh7 {[%clk 0:00:03]} 47. Qd3 {[%clk 0:00:11]} 1-0


[Site "https://www.chess.com"]

[Event "Titled Tuesday Blitz July 20 2021"]
[White "FGHSMN"]
[Black "Nguyen, Hong Ngoc"]
[BlackFideId "12403083"]
[WhiteElo "2529"]
[BlackElo "1830"]
[Result "1-0"]
[Round "06"]
[TimeControl "180+1"]
[Date "2021.07.21"]
[WhiteClock "0:00:03"]
[BlackClock "0:00:40"]

1. e4 {[%clk 0:03:00]}  d6 {[%clk 0:02:58]} 2. d4 {[%clk 0:03:00]}  Nf6 {[%clk 0:02:58]} 3. Nc3 {[%clk 0:02:59]}  g6 {[%clk 0:02:59]} 4. f4 {[%clk 0:02:58]}  Bg7 {[%clk 0:02:59]} 5. Nf3 {[%clk 0:02:57]}  Bg4 {[%clk 0:02:59]} 6. h3 {[%clk 0:02:54]}  Bxf3 {[%clk 0:02:57]} 7. Qxf3 {[%clk 0:02:55]}  Nc6 {[%clk 0:02:57]} 8. Be3 {[%clk 0:02:53]}  e5 {[%clk 0:02:51]} 9. fxe5 {[%clk 0:02:48]}  dxe5 {[%clk 0:02:51]} 10. d5 {[%clk 0:02:46]}  Nd4 {[%clk 0:02:47]} 11. Qf2 {[%clk 0:02:45]}  c5 {[%clk 0:02:40]} 12. Bd3 {[%clk 0:02:28]}  O-O {[%clk 0:02:38]} 13. O-O {[%clk 0:02:25]}  Ne8 {[%clk 0:02:33]} 14. Ne2 {[%clk 0:02:16]}  Nxe2+ {[%clk 0:02:25]} 15. Qxe2 {[%clk 0:02:12]}  b6 {[%clk 0:02:25]} 16. c4 {[%clk 0:02:09]}  Nd6 {[%clk 0:02:24]} 17. g4 {[%clk 0:02:07]}  Qe7 {[%clk 0:02:05]} 18. Rf3 {[%clk 0:02:01]}  Rae8 {[%clk 0:02:04]} 19. Raf1 {[%clk 0:01:59]}  f5 {[%clk 0:02:04]} 20. gxf5 {[%clk 0:01:46]}  gxf5 {[%clk 0:02:03]} 21. Bd2 {[%clk 0:01:05]}  f4 {[%clk 0:02:01]} 22. Kh1 {[%clk 0:01:03]}  Kh8 {[%clk 0:02:00]} 23. b4 {[%clk 0:01:02]}  Nb7 {[%clk 0:01:58]} 24. a3 {[%clk 0:01:01]}  Bf6 {[%clk 0:01:58]} 25. Rg1 {[%clk 0:00:53]}  Rg8 {[%clk 0:01:58]} 26. Rff1 {[%clk 0:00:52]}  Qd7 {[%clk 0:01:55]} 27. Rg4 {[%clk 0:00:38]}  Rxg4 {[%clk 0:01:54]} 28. Qxg4 {[%clk 0:00:33]}  Qxg4 {[%clk 0:01:54]} 29. hxg4 {[%clk 0:00:33]}  Rg8 {[%clk 0:01:46]} 30. Rg1 {[%clk 0:00:28]}  Bg5 {[%clk 0:01:42]} 31. Be1 {[%clk 0:00:19]}  Kg7 {[%clk 0:01:41]} 32. Kg2 {[%clk 0:00:19]}  Kf6 {[%clk 0:01:41]} 33. Kf3 {[%clk 0:00:19]}  Rc8 {[%clk 0:01:38]} 34. Rh1 {[%clk 0:00:20]}  h6 {[%clk 0:01:38]} 35. b5 {[%clk 0:00:18]}  Nd6 {[%clk 0:01:29]} 36. Rh2 {[%clk 0:00:17]}  a5 {[%clk 0:01:25]} 37. bxa6 {[%clk 0:00:16]}  Ra8 {[%clk 0:01:23]} 38. a4 {[%clk 0:00:17]}  Rxa6 {[%clk 0:01:23]} 39. Ra2 {[%clk 0:00:17]}  Nb7 {[%clk 0:01:22]} 40. Bc3 {[%clk 0:00:16]}  Nd6 {[%clk 0:01:05]} 41. Rb2 {[%clk 0:00:15]}  Nf7 {[%clk 0:01:01]} 42. Ra2 {[%clk 0:00:13]}  Kg6 {[%clk 0:00:58]} 43. a5 {[%clk 0:00:14]}  Bd8 {[%clk 0:00:58]} 44. Rb2 {[%clk 0:00:11]}  Ng5+ {[%clk 0:00:57]} 45. Kf2 {[%clk 0:00:10]}  Kf6 {[%clk 0:00:58]} 46. axb6 {[%clk 0:00:09]}  Rxb6 {[%clk 0:00:59]} 47. Rxb6+ {[%clk 0:00:08]}  Bxb6 {[%clk 0:00:59]} 48. Bb2 {[%clk 0:00:08]}  Nh3+ {[%clk 0:00:56]} 49. Kf3 {[%clk 0:00:08]}  Ng5+ {[%clk 0:00:56]} 50. Kg2 {[%clk 0:00:08]}  Nf7 {[%clk 0:00:57]} 51. Ba3 {[%clk 0:00:07]}  Kg5 {[%clk 0:00:56]} 52. Kf3 {[%clk 0:00:07]}  Nd6 {[%clk 0:00:55]} 53. Bc1 {[%clk 0:00:06]}  Nf7 {[%clk 0:00:50]} 54. Bd2 {[%clk 0:00:07]}  Kf6 {[%clk 0:00:50]} 55. Be1 {[%clk 0:00:07]}  Ng5+ {[%clk 0:00:49]} 56. Kg2 {[%clk 0:00:08]}  Kf7 {[%clk 0:00:45]} 57. Bf2 {[%clk 0:00:08]}  Ba7 {[%clk 0:00:41]} 58. Kf1 {[%clk 0:00:03]}  Nf3 {[%clk 0:00:41]} 59. Ke2 {[%clk 0:00:03]}  Nh2 {[%clk 0:00:40]} 60. Bg1 {[%clk 0:00:01]}  Nxg4 {[%clk 0:00:40]} 61. Kf3 {[%clk 0:00:02]}  Nf6 {[%clk 0:00:40]} 62. Bf2 {[%clk 0:00:03]}  Bb6 {[%clk 0:00:40]} 63. Bh4 {[%clk 0:00:04]}  Ba5 {[%clk 0:00:40]} 64. Be1 {[%clk 0:00:04]}  Ne8 {[%clk 0:00:39]} 65. Bxa5 {[%clk 0:00:03]}  Nd6 {[%clk 0:00:39]} 66. Bb6 {[%clk 0:00:04]}  Nb7 {[%clk 0:00:39]} 67. Kg4 {[%clk 0:00:04]}  Ke7 {[%clk 0:00:39]} 68. Kf5 {[%clk 0:00:04]}  Kd6 {[%clk 0:00:38]} 69. Ba7 {[%clk 0:00:03]}  Na5 {[%clk 0:00:37]} 70. Bb8+ {[%clk 0:00:04]}  Kd7 {[%clk 0:00:38]} 71. Bxe5 {[%clk 0:00:03]}  f3 {[%clk 0:00:39]} 72. Kf4 {[%clk 0:00:03]}  f2 {[%clk 0:00:39]} 73. Ke3 {[%clk 0:00:04]}  Nxc4+ {[%clk 0:00:40]} 74. Bxc4 {[%clk 0:00:03]} 1-0


[Site "https://www.chess.com"]

[Event "Titled Tuesday Blitz July 20 2021"]
[White "Gabrielian, Artur"]
[Black "Jovic, Stanoje"]
[WhiteFideId "4131002"]
[BlackFideId "905020"]
[WhiteElo "2523"]
[BlackElo "2286"]
[Result "0-1"]
[Round "06"]
[TimeControl "180+1"]
[Date "2021.07.21"]
[WhiteClock "0:00:50"]
[BlackClock "0:01:14"]

1. d4 {[%clk 0:03:00]}  Nf6 {[%clk 0:02:59]} 2. c4 {[%clk 0:03:00]}  e6 {[%clk 0:02:59]} 3. Nc3 {[%clk 0:03:00]}  Bb4 {[%clk 0:02:58]} 4. e3 {[%clk 0:03:00]}  O-O {[%clk 0:02:57]} 5. Bd3 {[%clk 0:02:59]}  d5 {[%clk 0:02:56]} 6. a3 {[%clk 0:02:58]}  dxc4 {[%clk 0:02:53]} 7. Bxc4 {[%clk 0:02:55]}  Bxc3+ {[%clk 0:02:49]} 8. bxc3 {[%clk 0:02:55]}  b6 {[%clk 0:02:49]} 9. Ne2 {[%clk 0:02:54]}  Ba6 {[%clk 0:02:47]} 10. Bxa6 {[%clk 0:02:53]}  Nxa6 {[%clk 0:02:47]} 11. O-O {[%clk 0:02:52]}  c5 {[%clk 0:02:47]} 12. f3 {[%clk 0:02:52]}  cxd4 {[%clk 0:02:46]} 13. cxd4 {[%clk 0:02:52]}  Rc8 {[%clk 0:02:45]} 14. e4 {[%clk 0:02:51]}  Qc7 {[%clk 0:02:42]} 15. Bg5 {[%clk 0:02:49]}  Qc2 {[%clk 0:02:39]} 16. Qe1 {[%clk 0:02:47]}  Kh8 {[%clk 0:02:21]} 17. Bxf6 {[%clk 0:02:34]}  gxf6 {[%clk 0:02:21]} 18. Nf4 {[%clk 0:02:34]}  Rg8 {[%clk 0:02:12]} 19. Qh4 {[%clk 0:02:29]}  Rg5 {[%clk 0:02:09]} 20. Rf2 {[%clk 0:02:13]}  Qc3 {[%clk 0:02:07]} 21. Rd1 {[%clk 0:02:11]}  Qb3 {[%clk 0:01:59]} 22. Rdf1 {[%clk 0:01:33]}  Rcg8 {[%clk 0:01:56]} 23. g4 {[%clk 0:01:25]}  Qxa3 {[%clk 0:01:51]} 24. Kh1 {[%clk 0:01:23]}  Qe3 {[%clk 0:01:44]} 25. Nh3 {[%clk 0:01:15]}  R5g6 {[%clk 0:01:38]} 26. d5 {[%clk 0:01:15]}  Nc5 {[%clk 0:01:35]} 27. dxe6 {[%clk 0:01:07]}  Nxe6 {[%clk 0:01:32]} 28. Rd1 {[%clk 0:01:03]}  Rh6 {[%clk 0:01:28]} 29. Qg3 {[%clk 0:01:02]}  Rxh3 {[%clk 0:01:27]} 30. Qxh3 {[%clk 0:01:02]}  Qxf2 {[%clk 0:01:27]} 31. Rf1 {[%clk 0:00:58]}  Qd2 {[%clk 0:01:21]} 32. Qg3 {[%clk 0:00:55]}  Nf4 {[%clk 0:01:19]} 33. Ra1 {[%clk 0:00:52]}  a5 {[%clk 0:01:15]} 34. Rb1 {[%clk 0:00:50]}  Rc8 {[%clk 0:01:14]} 0-1


[Site "https://www.chess.com"]

[Event "Titled Tuesday Blitz July 20 2021"]
[White "Gadimbayli, Abdulla"]
[Black "Sargsyan, Anna M."]
[WhiteFideId "13404938"]
[BlackFideId "13308130"]
[WhiteElo "2320"]
[BlackElo "2263"]
[Result "0-1"]
[Round "06"]
[TimeControl "180+1"]
[Date "2021.07.21"]
[WhiteClock "0:00:07"]
[BlackClock "0:00:05"]

1. e4 {[%clk 0:03:00]}  c6 {[%clk 0:02:34]} 2. Nf3 {[%clk 0:03:00]}  d5 {[%clk 0:02:30]} 3. exd5 {[%clk 0:03:01]}  cxd5 {[%clk 0:02:31]} 4. d4 {[%clk 0:03:02]}  Nc6 {[%clk 0:02:31]} 5. Ne5 {[%clk 0:03:01]}  Nf6 {[%clk 0:02:30]} 6. c3 {[%clk 0:03:02]}  g6 {[%clk 0:02:27]} 7. Bb5 {[%clk 0:03:01]}  Qb6 {[%clk 0:02:26]} 8. c4 {[%clk 0:03:00]}  dxc4 {[%clk 0:02:26]} 9. Nc3 {[%clk 0:03:00]}  a6 {[%clk 0:02:22]} 10. Ba4 {[%clk 0:02:54]}  Nd7 {[%clk 0:02:09]} 11. Bxc6 {[%clk 0:02:33]}  bxc6 {[%clk 0:02:08]} 12. Nxc4 {[%clk 0:02:34]}  Qb4 {[%clk 0:02:08]} 13. Qe2 {[%clk 0:02:16]}  Bg7 {[%clk 0:02:03]} 14. a3 {[%clk 0:02:11]}  Qb8 {[%clk 0:02:03]} 15. O-O {[%clk 0:02:07]}  O-O {[%clk 0:02:00]} 16. Qxe7 {[%clk 0:02:05]}  Bxd4 {[%clk 0:01:59]} 17. Bh6 {[%clk 0:02:04]}  Bf6 {[%clk 0:01:54]} 18. Qe3 {[%clk 0:01:59]}  Rd8 {[%clk 0:01:53]} 19. Rfe1 {[%clk 0:01:59]}  Nf8 {[%clk 0:01:48]} 20. Rad1 {[%clk 0:01:43]}  Be6 {[%clk 0:01:46]} 21. Ne4 {[%clk 0:01:43]}  Bh8 {[%clk 0:01:27]} 22. b3 {[%clk 0:00:47]}  Qb5 {[%clk 0:01:08]} 23. Qf4 {[%clk 0:00:29]}  Qf5 {[%clk 0:01:02]} 24. Qxf5 {[%clk 0:00:28]}  Bxf5 {[%clk 0:01:02]} 25. Rxd8 {[%clk 0:00:28]}  Rxd8 {[%clk 0:01:02]} 26. Ned6 {[%clk 0:00:29]}  Be6 {[%clk 0:01:01]} 27. h3 {[%clk 0:00:24]}  Nd7 {[%clk 0:00:58]} 28. Bg5 {[%clk 0:00:20]}  Rb8 {[%clk 0:00:56]} 29. b4 {[%clk 0:00:18]}  Nf6 {[%clk 0:00:53]} 30. Na5 {[%clk 0:00:17]}  Bd5 {[%clk 0:00:48]} 31. Ndc4 {[%clk 0:00:10]}  Ne4 {[%clk 0:00:43]} 32. Bf4 {[%clk 0:00:10]}  Rf8 {[%clk 0:00:19]} 33. f3 {[%clk 0:00:10]}  Bd4+ {[%clk 0:00:16]} 34. Kh2 {[%clk 0:00:10]}  Nc3 {[%clk 0:00:11]} 35. Be5 {[%clk 0:00:08]}  Bxe5+ {[%clk 0:00:08]} 36. Rxe5 {[%clk 0:00:09]}  Nb5 {[%clk 0:00:07]} 37. Re7 {[%clk 0:00:07]}  Kg7 {[%clk 0:00:06]} 38. g4 {[%clk 0:00:06]}  h5 {[%clk 0:00:05]} 39. Kg3 {[%clk 0:00:06]}  hxg4 {[%clk 0:00:05]} 40. fxg4 {[%clk 0:00:07]}  Kf6 {[%clk 0:00:06]} 41. Re1 {[%clk 0:00:06]}  Rd8 {[%clk 0:00:06]} 42. Re3 {[%clk 0:00:05]}  Bxc4 {[%clk 0:00:05]} 43. Nxc4 {[%clk 0:00:06]}  Rd4 {[%clk 0:00:05]} 44. Ne5 {[%clk 0:00:05]}  Rd6 {[%clk 0:00:04]} 45. Nc4 {[%clk 0:00:06]}  Re6 {[%clk 0:00:04]} 46. Rf3+ {[%clk 0:00:06]}  Kg7 {[%clk 0:00:04]} 47. Na5 {[%clk 0:00:06]}  Nd4 {[%clk 0:00:03]} 48. Rd3 {[%clk 0:00:06]}  Nb5 {[%clk 0:00:03]} 49. Kf3 {[%clk 0:00:05]}  g5 {[%clk 0:00:03]} 50. Kg2 {[%clk 0:00:04]}  f6 {[%clk 0:00:03]} 51. Nc4 {[%clk 0:00:04]}  Kf7 {[%clk 0:00:03]} 52. Ne3 {[%clk 0:00:04]}  Ke8 {[%clk 0:00:03]} 53. Nf5 {[%clk 0:00:04]}  Kf7 {[%clk 0:00:03]} 54. Kf2 {[%clk 0:00:04]}  Re4 {[%clk 0:00:03]} 55. Rd7+ {[%clk 0:00:04]}  Ke6 {[%clk 0:00:03]} 56. Re7+ {[%clk 0:00:04]}  Kd5 {[%clk 0:00:03]} 57. Rd7+ {[%clk 0:00:02]}  Ke6 {[%clk 0:00:02]} 58. Rf7 {[%clk 0:00:03]}  Kxf7 {[%clk 0:00:02]} 59. Ng3 {[%clk 0:00:04]}  Rf4+ {[%clk 0:00:02]} 60. Kg2 {[%clk 0:00:04]}  Ke7 {[%clk 0:00:03]} 61. Ne2 {[%clk 0:00:05]}  Ke6 {[%clk 0:00:03]} 62. Nxf4+ {[%clk 0:00:05]}  gxf4 {[%clk 0:00:04]} 63. Kf3 {[%clk 0:00:06]}  Nd4+ {[%clk 0:00:04]} 64. Kxf4 {[%clk 0:00:07]}  Nc2 {[%clk 0:00:04]} 65. h4 {[%clk 0:00:05]}  Nxa3 {[%clk 0:00:05]} 66. h5 {[%clk 0:00:06]}  Nc2 {[%clk 0:00:05]} 67. g5 {[%clk 0:00:06]}  fxg5+ {[%clk 0:00:05]} 68. Kxg5 {[%clk 0:00:07]}  Kf7 {[%clk 0:00:05]} 0-1


[Site "https://www.chess.com"]

[Event "Titled Tuesday Blitz July 20 2021"]
[White "Garcia Ramos, Daniel"]
[Black "Liu, Manli"]
[WhiteFideId "32010311"]
[BlackFideId "8608121"]
[WhiteElo "2321"]
[BlackElo "2061"]
[Result "1-0"]
[Round "06"]
[TimeControl "180+1"]
[Date "2021.07.21"]
[WhiteClock "0:00:43"]
[BlackClock "0:00:22"]

1. c4 {[%clk 0:03:00]}  Nf6 {[%clk 0:02:57]} 2. Nf3 {[%clk 0:03:01]}  e6 {[%clk 0:02:56]} 3. g3 {[%clk 0:03:01]}  d5 {[%clk 0:02:57]} 4. Bg2 {[%clk 0:03:02]}  Be7 {[%clk 0:02:57]} 5. O-O {[%clk 0:03:02]}  O-O {[%clk 0:02:58]} 6. b3 {[%clk 0:03:03]}  b6 {[%clk 0:02:55]} 7. Bb2 {[%clk 0:03:03]}  Bb7 {[%clk 0:02:55]} 8. cxd5 {[%clk 0:03:02]}  exd5 {[%clk 0:02:45]} 9. d4 {[%clk 0:03:01]}  Nbd7 {[%clk 0:02:42]} 10. Nc3 {[%clk 0:03:01]}  c6 {[%clk 0:02:41]} 11. Rc1 {[%clk 0:03:00]}  Bd6 {[%clk 0:02:41]} 12. Qd3 {[%clk 0:02:57]}  Re8 {[%clk 0:02:41]} 13. Rfe1 {[%clk 0:02:55]}  a5 {[%clk 0:02:39]} 14. e4 {[%clk 0:02:42]}  dxe4 {[%clk 0:02:37]} 15. Nxe4 {[%clk 0:02:42]}  Nxe4 {[%clk 0:02:37]} 16. Rxe4 {[%clk 0:02:42]}  Rxe4 {[%clk 0:02:34]} 17. Qxe4 {[%clk 0:02:43]}  Nf6 {[%clk 0:02:33]} 18. Qc2 {[%clk 0:02:42]}  c5 {[%clk 0:02:29]} 19. Rd1 {[%clk 0:02:34]}  Qe7 {[%clk 0:02:01]} 20. Ne5 {[%clk 0:01:42]}  Bxg2 {[%clk 0:01:45]} 21. Kxg2 {[%clk 0:01:43]}  cxd4 {[%clk 0:01:45]} 22. Nc6 {[%clk 0:01:20]}  Qb7 {[%clk 0:01:43]} 23. Bxd4 {[%clk 0:01:14]}  Rc8 {[%clk 0:01:28]} 24. Bxf6 {[%clk 0:01:13]}  Rxc6 {[%clk 0:01:25]} 25. Qe4 {[%clk 0:01:07]}  Qd7 {[%clk 0:00:39]} 26. Rxd6 {[%clk 0:00:46]}  Rxd6 {[%clk 0:00:30]} 27. Qa8+ {[%clk 0:00:45]}  Qd8 {[%clk 0:00:22]} 28. Bxd8 {[%clk 0:00:43]} 1-0


[Site "https://www.chess.com"]

[Event "Titled Tuesday Blitz July 20 2021"]
[White "Golubenko, Valentina"]
[Black "Mokshanov, Alexey"]
[WhiteFideId "4501993"]
[BlackFideId "24121657"]
[WhiteElo "2164"]
[BlackElo "2262"]
[Result "1/2-1/2"]
[Round "06"]
[TimeControl "180+1"]
[Date "2021.07.21"]
[WhiteClock "0:00:16"]
[BlackClock "0:00:57"]

1. d4 {[%clk 0:03:00]}  d5 {[%clk 0:02:59]} 2. g3 {[%clk 0:03:00]}  Nf6 {[%clk 0:02:59]} 3. Bg2 {[%clk 0:03:01]}  Bf5 {[%clk 0:02:59]} 4. Nf3 {[%clk 0:03:00]}  e6 {[%clk 0:03:00]} 5. O-O {[%clk 0:03:01]}  Be7 {[%clk 0:03:00]} 6. c4 {[%clk 0:03:01]}  c6 {[%clk 0:02:58]} 7. b3 {[%clk 0:03:01]}  O-O {[%clk 0:02:58]} 8. Nc3 {[%clk 0:03:00]}  h6 {[%clk 0:02:56]} 9. Bb2 {[%clk 0:03:00]}  Nbd7 {[%clk 0:02:54]} 10. Rc1 {[%clk 0:02:59]}  Re8 {[%clk 0:02:51]} 11. Nd2 {[%clk 0:02:52]}  Qa5 {[%clk 0:02:51]} 12. a3 {[%clk 0:02:32]}  b5 {[%clk 0:02:34]} 13. b4 {[%clk 0:02:27]}  Qb6 {[%clk 0:02:26]} 14. cxb5 {[%clk 0:02:14]}  cxb5 {[%clk 0:02:26]} 15. e4 {[%clk 0:02:14]}  dxe4 {[%clk 0:02:24]} 16. Ndxe4 {[%clk 0:02:14]}  Nxe4 {[%clk 0:02:15]} 17. Bxe4 {[%clk 0:02:01]}  Bxe4 {[%clk 0:02:08]} 18. Nxe4 {[%clk 0:02:01]}  Nf6 {[%clk 0:02:08]} 19. Nc5 {[%clk 0:01:50]}  Red8 {[%clk 0:01:54]} 20. Qe2 {[%clk 0:01:46]}  Nd5 {[%clk 0:01:51]} 21. Rfe1 {[%clk 0:01:38]}  a5 {[%clk 0:01:47]} 22. bxa5 {[%clk 0:01:01]}  Qxa5 {[%clk 0:01:46]} 23. Nb7 {[%clk 0:00:59]}  Qb6 {[%clk 0:01:37]} 24. Nxd8 {[%clk 0:00:59]}  Rxd8 {[%clk 0:01:35]} 25. Rc2 {[%clk 0:00:53]}  g6 {[%clk 0:01:29]} 26. Rec1 {[%clk 0:00:50]}  Kg7 {[%clk 0:01:29]} 27. Rc6 {[%clk 0:00:37]}  Qa5 {[%clk 0:01:24]} 28. Qd3 {[%clk 0:00:37]}  b4 {[%clk 0:01:22]} 29. Ra6 {[%clk 0:00:32]}  Nf4 {[%clk 0:01:07]} 30. gxf4 {[%clk 0:00:28]}  Qh5 {[%clk 0:01:07]} 31. axb4 {[%clk 0:00:25]}  Rd5 {[%clk 0:01:06]} 32. Qg3 {[%clk 0:00:20]}  Bh4 {[%clk 0:01:02]} 33. Qg2 {[%clk 0:00:18]}  Bg5 {[%clk 0:00:59]} 34. Kh1 {[%clk 0:00:17]}  Bxf4 {[%clk 0:01:00]} 35. Rc7 {[%clk 0:00:16]}  Qd1+ {[%clk 0:00:55]} 36. Qg1 {[%clk 0:00:15]}  Qf3+ {[%clk 0:00:55]} 37. Qg2 {[%clk 0:00:15]}  Qd1+ {[%clk 0:00:56]} 38. Qg1 {[%clk 0:00:16]}  Qf3+ {[%clk 0:00:57]} 39. Qg2 {[%clk 0:00:16]}  Qd1+ {[%clk 0:00:57]} 1/2-1/2


[Site "https://www.chess.com"]